fUSD/lending_fUSD_20241224
["ID","MTS","AMOUNT","RATE_DAILY","PERIOD"]
[346514466,1735017106022,-767.26,0.00016986,2]
[346514467,1735017106031,-3033.38,0.00016986,2]
[346514468,1735017106041,-500.0,0.00016986,2]
[346514469,1735017106051,-2055.63,0.00016986,2]
[346514470,1735017106060,-500.0,0.00016986,2]
[346514471,1735017106069,-1125.23,0.00016986,2]
[346514472,1735017106079,-500.0,0.00016986,2]
[346514473,1735017106089,-500.0,0.00016986,2]
[346514474,1735017106098,-500.0,0.00016986,2]
[346514475,1735017106108,-612.69,0.00016986,2]
[346514476,1735017106117,-500.0,0.00016986,2]
[346514477,1735017106127,-500.0,0.00016986,2]
[346514478,1735017106136,-500.0,0.00016986,2]
[346514479,1735017106145,-500.0,0.00016986,2]
[346514480,1735017106155,-500.0,0.00016986,2]
[346514481,1735017106164,-516.38,0.00016986,2]
[346514482,1735017106173,-500.0,0.00016986,2]
[346514483,1735017106183,-568.97404447,0.00016986,2]
[346514484,1735017106192,-500.0,0.00016986,2]
[346514485,1735017106201,-764.84,0.00016986,2]
[346514486,1735017106210,-500.0,0.00016986,2]
[346514487,1735017106219,-177.48,0.00016986,2]
[346514488,1735017106228,-187.17697627,0.00016986,2]
[346514489,1735017106238,-1499.77,0.00016986,2]
[346514490,1735017106247,-1598.59,0.00016986,2]
[346514491,1735017106257,-500.0,0.00016986,2]
[346514492,1735017106266,-1242.36,0.00016986,2]
[346514493,1735017106275,-500.0,0.00016986,2]
[346514494,1735017106285,-881.82,0.00016986,2]
[346514495,1735017106295,-559.25,0.00016986,2]
[346514496,1735017106305,-736.96,0.00016986,2]
[346514497,1735017106314,-632.45,0.00016986,2]
[346514498,1735017106323,-500.0,0.00016986,2]
[346514499,1735017106332,-343.48413282,0.00016986,2]
[346514500,1735017106341,-584.48,0.00016986,2]
[346514501,1735017106350,-500.0,0.00016986,2]
[346514502,1735017106359,-734.02,0.00016986,2]
[346514503,1735017106368,-1243.83,0.00016986,2]
[346514504,1735017106441,-500.0,0.00016986,2]
[346514505,1735017106451,-607.12,0.00016986,2]
[346514506,1735017106459,-698.02,0.00016986,2]
[346514507,1735017106469,-500.0,0.00016986,2]
[346514508,1735017106478,-500.0,0.00016986,2]
[346514509,1735017106488,-500.0,0.00016986,2]
[346514510,1735017106497,-500.0,0.00016986,2]
[346514511,1735017106507,-1517.51,0.00016986,2]
[346514512,1735017106516,-2185.96,0.00016986,2]
[346514513,1735017106526,-500.0,0.00016986,2]
[346514514,1735017106535,-1895.65,0.00016986,2]
[346514515,1735017106544,-500.0,0.00016986,2]
[346514516,1735017106553,-524.51,0.00016986,2]
[346514517,1735017106565,-1341.35,0.00016986,2]
[346514518,1735017106574,-1146.95,0.00016986,2]
[346514519,1735017106583,-500.0,0.00016986,2]
[346514520,1735017106592,-847.15,0.00016986,2]
[346514521,1735017106602,-804.88,0.00016986,2]
[346514522,1735017106611,-845.49,0.00016986,2]
[346514523,1735017106621,-500.0,0.00016986,2]
[346514524,1735017106631,-728.57,0.00016986,2]
[346514525,1735017106640,-500.0,0.00016986,2]
[346514526,1735017106650,-512.15,0.00016986,2]
[346514527,1735017106659,-953.52,0.00016986,2]
[346514528,1735017106668,-500.0,0.00016986,2]
[346514529,1735017106677,-500.0,0.00016986,2]
[346514530,1735017106686,-1722.6,0.00016986,2]
[346514531,1735017106695,-1169.18,0.00016986,2]
[346514532,1735017106704,-967.22,0.00016986,2]
[346514533,1735017106713,-970.63,0.00016986,2]
[346514534,1735017106723,-682.34,0.00016986,2]
[346514535,1735017106732,-1186.53,0.00016986,2]
[346514536,1735017106742,-516.04,0.00016986,2]
[346514537,1735017106751,-2751.61,0.00016986,2]
[346514538,1735017106760,-8307.43,0.00016986,2]
[346514539,1735017106770,-951.65,0.00016986,2]
[346514540,1735017106780,-1312.48,0.00016986,2]
[346514541,1735017106789,-838.55,0.00016986,2]
[346514542,1735017106798,-500.0,0.00016986,2]
[346514543,1735017106808,-693.38,0.00016986,2]
[346514544,1735017106817,-895.42,0.00016986,2]
[346514545,1735017106826,-2714.59,0.00016986,2]
[346514546,1735017106835,-1034.79,0.00016986,2]
[346514547,1735017106844,-530.08,0.00016986,2]
[346514548,1735017106853,-970.92,0.00016986,2]
[346514549,1735017106862,-1494.15,0.00016986,2]
[346514550,1735017106871,-2028.23,0.00016986,2]
[346514551,1735017106880,-155.825675,0.00016986,2]
[346514552,1735017106889,-8065.04,0.00016986,2]
[346514553,1735017106898,-14022.51,0.00016986,2]
[346514554,1735017106908,-1858.88,0.00016986,2]
[346514555,1735017106919,-417.753861,0.00016986,2]
[346514556,1735017106929,-638.49,0.00016986,2]
[346514557,1735017106938,-1961.86,0.00016986,2]
[346514558,1735017106947,-470.967598,0.00016986,2]
[346514559,1735017106956,-1516.28,0.00016986,2]
[346514560,1735017106966,-500.0,0.00016986,2]
[346514561,1735017106975,-2763.5,0.00016986,2]
[346514562,1735017106984,-595.96,0.00016986,2]
[346514563,1735017106994,-991.86,0.00016986,2]
[346514564,1735017107003,-1589.93,0.00016986,2]
[346514565,1735017107013,-2026.52,0.00016986,2]
[346514566,1735017107023,-841.8,0.00016986,2]
[346514567,1735017107033,-500.0,0.00016986,2]
[346514568,1735017107042,-1673.95,0.00016986,2]
[346514569,1735017107051,-704.95,0.00016986,2]
[346514570,1735017107061,-881.88,0.00016986,2]
[346514571,1735017107070,-947.94,0.00016986,2]
[346514572,1735017107079,-1132.27,0.00016986,2]
[346514573,1735017107089,-1217.14,0.00016986,2]
[346514574,1735017107098,-527.89,0.00016986,2]
[346514575,1735017107107,-500.0,0.00016986,2]
[346514576,1735017107116,-1554.58,0.00016986,2]
[346514577,1735017107125,-1554.93,0.00016986,2]
[346514578,1735017107135,-783.81,0.00016986,2]
[346514579,1735017107144,-8937.01,0.00016986,2]
[346514580,1735017107153,-1595.12,0.00016986,2]
[346514581,1735017107162,-1043.93,0.00016986,2]
[346514582,1735017107171,-820.47,0.00016986,2]
[346514583,1735017107180,-570.88,0.00016986,2]
[346514584,1735017107189,-3160.1,0.00016986,2]
[346514585,1735017107199,-2812.48,0.00016986,2]
[346514586,1735017107209,-1278.73,0.00016986,2]
[346514587,1735017107218,-500.0,0.00016986,2]
[346514588,1735017107228,-2713.57,0.00016986,2]
[346514589,1735017107237,-708.16,0.00016986,2]
[346514590,1735017107247,-2055.84,0.00016986,2]
[346514591,1735017107256,-500.0,0.00016986,2]
[346514592,1735017107266,-1461.32,0.00016986,2]
[346514593,1735017107275,-1831.86,0.00016986,2]
[346514594,1735017107285,-5286.14,0.00016986,2]
[346514595,1735017107294,-2687.24,0.00016986,2]
[346514596,1735017107303,-929.6,0.00016986,2]
[346514597,1735017107312,-1334.92,0.00016986,2]
[346514598,1735017107321,-599.85,0.00016986,2]
[346514599,1735017107331,-6644.58,0.00016986,2]
[346514600,1735017107340,-2084.05,0.00016986,2]
[346514601,1735017107349,-1574.04,0.00016986,2]
[346514602,1735017107358,-521.4,0.00016986,2]
[346514603,1735017107368,-1759.16,0.00016986,2]
[346514604,1735017107377,-5396.91,0.00016986,2]
[346514605,1735017107386,-5068.92,0.00016986,2]
[346514606,1735017107395,-2140.51,0.00016986,2]
[346514607,1735017107405,-1218.27,0.00016986,2]
[346514608,1735017107414,-1094.07,0.00016986,2]
[346514609,1735017107424,-10243.1,0.00016986,2]
[346514610,1735017107433,-374.83997793,0.00016986,2]
[346514611,1735017107443,-721.28,0.00016986,2]
[346514612,1735017107452,-5625.96,0.00016986,2]
[346514613,1735017107461,-1216.52,0.00016986,2]
[346514614,1735017107470,-790.49,0.00016986,2]
[346514615,1735017107479,-500.0,0.00016986,2]
[346514616,1735017107488,-653.69,0.00016986,2]
[346514617,1735017107498,-500.0,0.00016986,2]
[346514618,1735017107508,-506.69,0.00016986,2]
[346514619,1735017107518,-2281.06,0.00016986,2]
[346514620,1735017107530,-500.0,0.00016986,2]
[346514621,1735017107539,-500.0,0.00016986,2]
[346514622,1735017107547,-1025.3,0.00016986,2]
[346514623,1735017107557,-500.0,0.00016986,2]
[346514624,1735017107569,-3534.91,0.00016986,2]
[346514625,1735017107578,-1884.7,0.00016986,2]
[346514626,1735017107587,-1009.93,0.00016986,2]
[346514627,1735017107596,-747.18,0.00016986,2]
[346514628,1735017107605,-1487.41,0.00016986,2]
[346514629,1735017107614,-1157.43,0.00016986,2]
[346514630,1735017107623,-1148.68,0.00016986,2]
[346514631,1735017107632,-574.67,0.00016986,2]
[346514632,1735017107641,-520.9,0.00016986,2]
[346514633,1735017107651,-1366.93,0.00016986,2]
[346514634,1735017107660,-1321.6,0.00016986,2]
[346514635,1735017107669,-500.0,0.00016986,2]
[346514636,1735017107679,-3473.97,0.00016986,2]
[346514637,1735017107688,-2009.91,0.00016986,2]
[346514638,1735017107702,-1834.74,0.00016986,2]
[346514639,1735017107711,-12237.72,0.00016986,2]
[346514640,1735017107720,-1429.03,0.00016986,2]
[346514641,1735017107729,-402.12975574,0.00016998,2]
[346514642,1735017107738,-550.0,0.00017,2]
[346514643,1735017107747,-671.32238507,0.00017014,2]
[346514644,1735017107756,-823.0,0.00017018,2]
[346514645,1735017107767,-747.04,0.00017034,2]
[346514646,1735017107777,-671.32238507,0.00017096,2]
[346514647,1735017107786,-250.0,0.00017123,2]
[346514648,1735017107795,-206.0,0.0001714,2]
[346514649,1735017107804,-300.0,0.00017148,2]
[346514650,1735017107813,-317.51290939,0.00017148,2]
[346514651,1735017107823,-150.0,0.00017149,2]
[346514652,1735017107832,-565.0,0.00017149,2]
[346514653,1735017107841,-1899.0,0.00017149,2]
[346514654,1735017107851,-3771.0,0.00017149,2]
[346514655,1735017107861,-818.0,0.00017149,2]
[346514656,1735017107871,-924.0,0.00017149,2]
[346514657,1735017107884,-1256.0,0.00017149,2]
[346514658,1735017107893,-536.0,0.00017149,2]
[346514659,1735017107902,-3683.0,0.00017149,2]
[346514660,1735017107912,-150.0,0.00017149,2]
[346514661,1735017107922,-3888.0,0.00017149,2]
[346514662,1735017107931,-9594.0,0.00017149,2]
[346514663,1735017107941,-1101.0,0.00017149,2]
[346514664,1735017107950,-300.0,0.00017173,2]
[346514665,1735017107960,-671.32238507,0.00017178,2]
[346514666,1735017107968,-185.83,0.00017183,2]
[346514667,1735017107977,-300.0,0.00017259,2]
[346514668,1735017107986,-500.0,0.0001726,2]
[346514669,1735017107995,-557.785434,0.0001726,2]
[346514670,1735017108004,-664.615719,0.0001726,2]
[346514671,1735017108014,-500.0,0.0001726,2]
[346514672,1735017108023,-500.0,0.0001726,2]
[346514673,1735017108033,-500.0,0.0001726,2]
[346514674,1735017108042,-656.66,0.0001726,2]
[346514675,1735017108052,-547.42,0.0001726,2]
[346514676,1735017108061,-500.0,0.0001726,2]
[346514677,1735017108070,-500.0,0.0001726,2]
[346514678,1735017108080,-728.94,0.0001726,2]
[346514679,1735017108090,-559.81,0.0001726,2]
[346514680,1735017108099,-500.0,0.0001726,2]
[346514681,1735017108109,-500.0,0.0001726,2]
[346514682,1735017108119,-556.14,0.0001726,2]
[346514683,1735017108129,-922.02,0.0001726,2]
[346514684,1735017108139,-660.38,0.0001726,2]
[346514685,1735017108148,-719.55,0.0001726,2]
[346514686,1735017108157,-500.0,0.0001726,2]
[346514687,1735017108166,-500.0,0.0001726,2]
[346514688,1735017108176,-847.72,0.0001726,2]
[346514689,1735017108185,-500.0,0.0001726,2]
[346514690,1735017108195,-803.4,0.0001726,2]
[346514691,1735017108204,-500.0,0.0001726,2]
[346514692,1735017108212,-500.0,0.0001726,2]
[346514693,1735017108221,-500.0,0.0001726,2]
[346514694,1735017108231,-350.29150142,0.0001726,2]
[346514695,1735017108240,-500.0,0.0001726,2]
[346514696,1735017108249,-500.0,0.0001726,2]
[346514697,1735017108262,-345.56,0.0001726,2]
[346514698,1735017108271,-639.75,0.0001726,2]
[346514699,1735017108281,-2089.39,0.0001726,2]
[346514700,1735017108291,-739.91,0.0001726,2]
[346514701,1735017108300,-500.0,0.0001726,2]
[346514702,1735017108310,-299.12,0.0001726,2]
[346514703,1735017108319,-605.17,0.0001726,2]
[346514704,1735017108329,-815.06,0.0001726,2]
[346514705,1735017108338,-500.0,0.0001726,2]
[346514706,1735017108347,-699.59,0.0001726,2]
[346514707,1735017108356,-500.0,0.0001726,2]
[346514708,1735017108365,-1038.23,0.0001726,2]
[346514709,1735017108375,-928.44,0.0001726,2]
[346514710,1735017108384,-500.0,0.0001726,2]
[346514711,1735017108393,-628.43,0.0001726,2]
[346514712,1735017108403,-1245.64,0.0001726,2]
[346514713,1735017108412,-516.41,0.0001726,2]
[346514714,1735017108422,-859.05,0.0001726,2]
[346514715,1735017108431,-500.0,0.0001726,2]
[346514716,1735017108440,-500.0,0.0001726,2]
[346514717,1735017108449,-500.0,0.0001726,2]
[346514718,1735017108459,-500.0,0.0001726,2]
[346514719,1735017108468,-500.0,0.0001726,2]
[346514720,1735017108477,-500.0,0.0001726,2]
[346514721,1735017108486,-589.52,0.0001726,2]
[346514722,1735017108495,-500.0,0.0001726,2]
[346514723,1735017108505,-500.0,0.0001726,2]
[346514724,1735017108518,-524.33,0.0001726,2]
[346514725,1735017108528,-500.0,0.0001726,2]
[346514726,1735017108537,-500.0,0.0001726,2]
[346514727,1735017108546,-500.0,0.0001726,2]
[346514728,1735017108556,-500.0,0.0001726,2]
[346514729,1735017108569,-500.0,0.0001726,2]
[346514730,1735017108578,-958.18,0.0001726,2]
[346514731,1735017108587,-500.0,0.0001726,2]
[346514732,1735017108597,-595.01206224,0.0001726,2]
[346514733,1735017108606,-500.0,0.0001726,2]
[346514734,1735017108616,-537.25,0.0001726,2]
[346514735,1735017108625,-1121.59,0.0001726,2]
[346514736,1735017108636,-500.0,0.0001726,2]
[346514737,1735017108646,-556.54,0.0001726,2]
[346514738,1735017108655,-500.0,0.0001726,2]
[346514739,1735017108665,-500.0,0.0001726,2]
[346514740,1735017108674,-561.23,0.0001726,2]
[346514741,1735017108684,-915.52,0.0001726,2]
[346514742,1735017108694,-876.14,0.0001726,2]
[346514743,1735017108703,-500.0,0.0001726,2]
[346514744,1735017108712,-500.0,0.0001726,2]
[346514745,1735017108721,-571.48,0.0001726,2]
[346514746,1735017108731,-1568.06,0.0001726,2]
[346514747,1735017108741,-790.82,0.0001726,2]
[346514748,1735017108750,-500.0,0.0001726,2]
[346514749,1735017108760,-824.42,0.0001726,2]
[346514750,1735017108770,-1098.82,0.0001726,2]
[346514751,1735017108779,-500.0,0.0001726,2]
[346514752,1735017108788,-500.0,0.0001726,2]
[346514753,1735017108798,-745.24,0.0001726,2]
[346514754,1735017108808,-1414.48,0.0001726,2]
[346514755,1735017108818,-500.0,0.0001726,2]
[346514756,1735017108827,-500.0,0.0001726,2]
[346514757,1735017108836,-1084.53,0.0001726,2]
[346514758,1735017108845,-666.79,0.0001726,2]
[346514759,1735017108855,-500.0,0.0001726,2]
[346514760,1735017108865,-1900.45,0.0001726,2]
[346514761,1735017108875,-1378.72,0.0001726,2]
[346514762,1735017108885,-767.26,0.0001726,2]
[346514763,1735017108895,-3033.38,0.0001726,2]
[346514764,1735017108905,-500.0,0.0001726,2]
[346514765,1735017108916,-2055.63,0.0001726,2]
[346514766,1735017108925,-500.0,0.0001726,2]
[346514767,1735017108935,-1125.23,0.0001726,2]
[346514768,1735017108945,-500.0,0.0001726,2]
[346514769,1735017108955,-500.0,0.0001726,2]
[346514770,1735017108964,-500.0,0.0001726,2]
[346514771,1735017108974,-612.69,0.0001726,2]
[346514772,1735017108984,-500.0,0.0001726,2]
[346514773,1735017108993,-500.0,0.0001726,2]
[346514774,1735017109003,-500.0,0.0001726,2]
[346514775,1735017109014,-500.0,0.0001726,2]
[346514776,1735017109024,-500.0,0.0001726,2]
[346514777,1735017109034,-516.38,0.0001726,2]
[346514778,1735017109043,-500.0,0.0001726,2]
[346514779,1735017109053,-500.0,0.0001726,2]
[346514780,1735017109062,-764.84,0.0001726,2]
[346514781,1735017109071,-500.0,0.0001726,2]
[346514782,1735017109081,-1499.77,0.0001726,2]
[346514783,1735017109091,-1598.59,0.0001726,2]
[346514784,1735017109100,-500.0,0.0001726,2]
[346514785,1735017109110,-1242.36,0.0001726,2]
[346514786,1735017109120,-881.82,0.0001726,2]
[346514787,1735017109130,-500.0,0.0001726,2]
[346514788,1735017109140,-559.25,0.0001726,2]
[346514789,1735017109150,-736.96,0.0001726,2]
[346514790,1735017109160,-632.45,0.0001726,2]
[346514791,1735017109169,-500.0,0.0001726,2]
[346514792,1735017109179,-584.48,0.0001726,2]
[346514793,1735017109188,-500.0,0.0001726,2]
[346514794,1735017109198,-734.02,0.0001726,2]
[346514795,1735017109207,-1243.83,0.0001726,2]
[346514796,1735017109217,-500.0,0.0001726,2]
[346514797,1735017109227,-607.12,0.0001726,2]
[346514798,1735017109236,-698.02,0.0001726,2]
[346514799,1735017109246,-500.0,0.0001726,2]
[346514800,1735017109255,-158.65996305,0.0001726,2]
[346514801,1735017109265,-500.0,0.0001726,2]
[346514802,1735017109275,-500.0,0.0001726,2]
[346514803,1735017109285,-1517.51,0.0001726,2]
[346514804,1735017109295,-2185.96,0.0001726,2]
[346514805,1735017109305,-500.0,0.0001726,2]
[346514806,1735017109315,-1895.65,0.0001726,2]
[346514807,1735017109324,-500.0,0.0001726,2]
[346514808,1735017109334,-524.51,0.0001726,2]
[346514809,1735017109344,-1341.35,0.0001726,2]
[346514810,1735017109353,-1146.95,0.0001726,2]
[346514811,1735017109363,-500.0,0.0001726,2]
[346514812,1735017109372,-847.15,0.0001726,2]
[346514813,1735017109382,-804.88,0.0001726,2]
[346514814,1735017109391,-845.49,0.0001726,2]
[346514815,1735017109402,-500.0,0.0001726,2]
[346514816,1735017109412,-728.57,0.0001726,2]
[346514817,1735017109422,-500.0,0.0001726,2]
[346514818,1735017109432,-512.15,0.0001726,2]
[346514819,1735017109441,-953.52,0.0001726,2]
[346514820,1735017109451,-500.0,0.0001726,2]
[346514821,1735017109461,-500.0,0.0001726,2]
[346514822,1735017109471,-1722.6,0.0001726,2]
[346514823,1735017109480,-1169.18,0.0001726,2]
[346514824,1735017109490,-967.22,0.0001726,2]
[346514825,1735017109500,-970.63,0.0001726,2]
[346514826,1735017109511,-682.34,0.0001726,2]
[346514827,1735017109521,-1186.53,0.0001726,2]
[346514828,1735017109531,-516.04,0.0001726,2]
[346514829,1735017109542,-2751.61,0.0001726,2]
[346514830,1735017109552,-8307.43,0.0001726,2]
[346514831,1735017109564,-951.65,0.0001726,2]
[346514832,1735017109574,-1312.48,0.0001726,2]
[346514833,1735017109583,-838.55,0.0001726,2]
[346514834,1735017109593,-500.0,0.0001726,2]
[346514835,1735017109602,-693.38,0.0001726,2]
[346514836,1735017109612,-895.42,0.0001726,2]
[346514837,1735017109621,-2714.59,0.0001726,2]
[346514838,1735017109631,-1034.79,0.0001726,2]
[346514839,1735017109640,-530.08,0.0001726,2]
[346514840,1735017109650,-970.92,0.0001726,2]
[346514841,1735017109659,-1494.15,0.0001726,2]
[346514842,1735017109669,-2028.23,0.0001726,2]
[346514843,1735017109679,-8065.04,0.0001726,2]
[346514844,1735017109689,-14022.51,0.0001726,2]
[346514845,1735017109699,-1858.88,0.0001726,2]
[346514846,1735017109709,-417.753861,0.0001726,2]
[346514847,1735017109718,-638.49,0.0001726,2]
[346514848,1735017109728,-1961.86,0.0001726,2]
[346514849,1735017109737,-470.967598,0.0001726,2]
[346514850,1735017109747,-1516.28,0.0001726,2]
[346514851,1735017109757,-519.262878,0.0001726,2]
[346514852,1735017109768,-2763.5,0.0001726,2]
[346514853,1735017109777,-595.96,0.0001726,2]
[346514854,1735017109787,-991.86,0.0001726,2]
[346514855,1735017109797,-1589.93,0.0001726,2]
[346514856,1735017109807,-2026.52,0.0001726,2]
[346514857,1735017109817,-841.8,0.0001726,2]
[346514858,1735017109827,-500.0,0.0001726,2]
[346514859,1735017109836,-1673.95,0.0001726,2]
[346514860,1735017109846,-704.95,0.0001726,2]
[346514861,1735017109856,-881.88,0.0001726,2]
[346514862,1735017109866,-947.94,0.0001726,2]
[346514863,1735017109875,-1132.27,0.0001726,2]
[346514864,1735017109885,-1217.14,0.0001726,2]
[346514865,1735017109895,-527.89,0.0001726,2]
[346514866,1735017109907,-276.67955566,0.0001726,2]
[346514867,1735017109916,-1554.58,0.0001726,2]
[346514868,1735017109926,-1554.93,0.0001726,2]
[346514869,1735017109936,-783.81,0.0001726,2]
[346514870,1735017109946,-8937.01,0.0001726,2]
[346514871,1735017109955,-1595.12,0.0001726,2]
[346514872,1735017109965,-1043.93,0.0001726,2]
[346514873,1735017109975,-820.47,0.0001726,2]
[346514874,1735017109984,-570.88,0.0001726,2]
[346514875,1735017109994,-3160.1,0.0001726,2]
[346514876,1735017110004,-2812.48,0.0001726,2]
[346514877,1735017110013,-1278.73,0.0001726,2]
[346514878,1735017110023,-500.0,0.0001726,2]
[346514879,1735017110033,-2713.57,0.0001726,2]
[346514880,1735017110042,-708.16,0.0001726,2]
[346514881,1735017110052,-2055.84,0.0001726,2]
[346514882,1735017110062,-295.33612604,0.0001726,2]
[346514883,1735017110072,-1461.32,0.0001726,2]
[346514884,1735017110082,-1831.86,0.0001726,2]
[346514885,1735017110091,-5286.14,0.0001726,2]
[346514886,1735017110101,-2687.24,0.0001726,2]
[346514887,1735017110111,-929.6,0.0001726,2]
[346514888,1735017110120,-1334.92,0.0001726,2]
[346514889,1735017110130,-599.85,0.0001726,2]
[346514890,1735017110140,-6644.58,0.0001726,2]
[346514891,1735017110150,-2084.05,0.0001726,2]
[346514892,1735017110159,-1574.04,0.0001726,2]
[346514893,1735017110169,-521.4,0.0001726,2]
[346514894,1735017110179,-1759.16,0.0001726,2]
[346514895,1735017110188,-5396.91,0.0001726,2]
[346514896,1735017110198,-5068.92,0.0001726,2]
[346514897,1735017110208,-2140.51,0.0001726,2]
[346514898,1735017110218,-1094.07,0.0001726,2]
[346514899,1735017110228,-1218.27,0.0001726,2]
[346514900,1735017110238,-10243.1,0.0001726,2]
[346514901,1735017110247,-721.28,0.0001726,2]
[346514902,1735017110257,-5625.96,0.0001726,2]
[346514903,1735017110268,-1216.52,0.0001726,2]
[346514904,1735017110278,-790.49,0.0001726,2]
[346514905,1735017110288,-500.0,0.0001726,2]
[346514906,1735017110298,-653.69,0.0001726,2]
[346514907,1735017110308,-500.0,0.0001726,2]
[346514908,1735017110318,-506.69,0.0001726,2]
[346514909,1735017110328,-2281.06,0.0001726,2]
[346514910,1735017110338,-500.0,0.0001726,2]
[346514911,1735017110348,-500.0,0.0001726,2]
[346514912,1735017110358,-1025.3,0.0001726,2]
[346514913,1735017110368,-500.0,0.0001726,2]
[346514914,1735017110378,-3534.91,0.0001726,2]
[346514915,1735017110388,-1884.7,0.0001726,2]
[346514916,1735017110398,-1009.93,0.0001726,2]
[346514917,1735017110408,-747.18,0.0001726,2]
[346514918,1735017110418,-1487.41,0.0001726,2]
[346514919,1735017110428,-1157.43,0.0001726,2]
[346514920,1735017110438,-1148.68,0.0001726,2]
[346514921,1735017110448,-574.67,0.0001726,2]
[346514922,1735017110458,-520.9,0.0001726,2]
[346514923,1735017110468,-1366.93,0.0001726,2]
[346514924,1735017110478,-1321.6,0.0001726,2]
[346514925,1735017110487,-500.0,0.0001726,2]
[346514926,1735017110497,-3473.97,0.0001726,2]
[346514927,1735017110508,-2009.91,0.0001726,2]
[346514928,1735017110519,-1834.74,0.0001726,2]
[346514929,1735017110529,-12237.72,0.0001726,2]
[346514930,1735017110539,-1429.03,0.0001726,2]
[346514931,1735017110549,-1000.0,0.00017302,2]
[346514932,1735017110562,-152.40472,0.00017372,2]
[346514933,1735017110572,-498.09,0.00017374,2]
[346514934,1735017110582,-359.12,0.00017391,2]
[346514935,1735017110591,-238.91,0.00017462,2]
[346514936,1735017110601,-427.077,0.0001747,2]
[346514937,1735017110612,-633.0,0.0001747,2]
[346514938,1735017110623,-300.0,0.00017533,2]
[346514939,1735017110632,-500.0,0.00017534,2]
[346514940,1735017110642,-557.785434,0.00017534,2]
[346514941,1735017110652,-664.615719,0.00017534,2]
[346514942,1735017110662,-246.58040789,0.00017534,2]
[346514943,1735017110671,-500.0,0.00017534,2]
[346514944,1735017110681,-500.0,0.00017534,2]
[346514945,1735017110691,-656.66,0.00017534,2]
[346514946,1735017110702,-547.42,0.00017534,2]
[346514947,1735017110711,-500.0,0.00017534,2]
[346514948,1735017110721,-500.0,0.00017534,2]
[346514949,1735017110731,-728.94,0.00017534,2]
[346514950,1735017110742,-559.81,0.00017534,2]
[346514951,1735017110752,-500.0,0.00017534,2]
[346514952,1735017110763,-500.0,0.00017534,2]
[346514953,1735017110773,-556.14,0.00017534,2]
[346514954,1735017110784,-922.02,0.00017534,2]
[346514955,1735017110793,-660.38,0.00017534,2]
[346514956,1735017110803,-719.55,0.00017534,2]
[346514957,1735017110814,-500.0,0.00017534,2]
[346514958,1735017110824,-500.0,0.00017534,2]
[346514959,1735017110834,-847.72,0.00017534,2]
[346514960,1735017110844,-500.0,0.00017534,2]
[346514961,1735017110854,-803.4,0.00017534,2]
[346514962,1735017110864,-500.0,0.00017534,2]
[346514963,1735017110874,-500.0,0.00017534,2]
[346514964,1735017110884,-500.0,0.00017534,2]
[346514965,1735017110894,-500.0,0.00017534,2]